bitfinex-derivatives/quotes_ETHF0:USTF0_20241024
["timestamp","ask_amount","ask_price","bid_price","bid_amount"]
[1729805010502,0.6995,2560.8,2560.5,2.74804638]
[1729805010711,0.39079,2560.3,2560.2,2.74804638]
[1729805012504,0.39076,2560.5,2560.2,2.74804638]
[1729805012713,3.2078,2560.6,2560.2,2.74804638]
[1729805012911,0.39079,2560.3,2560.2,2.74804638]
[1729805013106,0.39076,2560.5,2560.2,2.74804638]
[1729805013303,0.39076,2560.5,2560.4,2.74804638]
[1729805013812,0.39076,2560.5,2560.3,0.39079]
[1729805014013,0.39076,2560.5,2560.2,0.3908]
[1729805014213,0.39077,2560.4,2560.2,0.3908]
[1729805014608,0.39077,2560.4,2560.1,3.13885638]
[1729805014812,3.2078,2560.5,2560.1,2.74804638]
[1729805015010,3.59857,2560.5,2560.2,0.3908]
[1729805015312,0.39077,2560.4,2560.1,2.74804638]
[1729805015513,0.3908,2560.3,2560.1,3.13885638]
[1729805015707,3.2078,2560.5,2560.1,2.74804638]
[1729805015909,0.7235,2560.4,2560.3,0.39079]
[1729805017013,3.2078,2560.5,2560.4,0.39077]
[1729805017220,0.39069,2561.0,2560.8,0.3907]
[1729805018215,0.39069,2561.0,2560.7,0.39072]
[1729805019011,0.39069,2561.0,2560.8,0.39071]
[1729805019715,0.39069,2561.0,2560.6,2.74804638]
[1729805020019,3.8821,2561.2,2560.7,0.39071]
[1729805020216,0.6743,2561.2,2561.1,0.39067]
[1729805020516,3.9192,2561.3,2560.8,2.74804638]
[1729805020712,3.9192,2561.3,2561.1,0.39065]
[1729805020919,3.9192,2561.3,2560.9,1.4075]
[1729805021113,4.30984,2561.3,2561.1,0.39066]
[1729805021314,3.9192,2561.3,2560.9,1.4075]
[1729805021510,3.9192,2561.3,2561.1,0.39065]
[1729805021714,3.9192,2561.3,2561.2,0.39065]
[1729805021918,4.30984,2561.3,2561.1,0.39066]
[1729805022217,3.9192,2561.3,2561.0,0.39067]
[1729805022421,3.2078,2561.3,2561.0,0.39068]
[1729805022620,3.2078,2561.3,2560.9,1.4075]
[1729805022817,3.2078,2561.3,2561.1,0.39066]
[1729805023218,3.59844,2561.3,2561.1,0.39066]
[1729805023618,3.2078,2561.3,2561.1,2.74804638]
[1729805023816,3.2078,2561.3,2561.2,0.39065]
[1729805024516,3.2078,2561.3,2561.1,2.74804638]
[1729805024517,3.2078,2561.3,2561.1,3.13869638]
[1729805024725,3.2078,2561.3,2561.2,0.39065]
[1729805024919,3.59844,2561.3,2561.1,3.13870638]
[1729805025117,3.2078,2561.3,2561.2,0.39065]
[1729805027125,3.2078,2561.3,2561.1,2.74804638]
[1729805027326,3.59844,2561.3,2561.2,0.39065]
[1729805027521,3.2078,2561.3,2561.2,0.39065]
[1729805027726,3.2078,2561.3,2561.2,4.29545]
[1729805027921,3.2078,2561.3,2561.2,4.98115]
[1729805030427,3.59844,2561.3,2561.2,0.6857]
[1729805030630,3.2078,2561.3,2561.2,4.98035]
[1729805030827,0.39065,2561.2,2561.0,1.35868]
[1729805031021,0.39066,2561.2,2561.0,1.35868]
[1729805031221,0.39067,2561.1,2561.0,0.968]
[1729805031423,0.39067,2561.1,2560.9,4.54623638]
[1729805031623,0.39067,2561.1,2560.9,5.51423638]
[1729805031828,0.39067,2561.1,2560.9,8.45103638]
[1729805032225,0.39068,2561.0,2560.9,4.15554638]
[1729805032728,0.39068,2561.0,2560.9,8.06034638]
[1729805032931,1.3662,2561.2,2560.9,8.06034638]
[1729805033127,0.39067,2561.1,2560.9,4.15554638]
[1729805033318,0.39067,2561.1,2560.9,4.54623638]
[1729805033623,0.39067,2561.1,2560.9,4.15554638]
[1729805033829,3.2078,2561.3,2560.9,4.15554638]
[1729805034026,3.2078,2561.3,2561.2,0.39065]
[1729805035327,3.2078,2561.3,2561.1,2.74804638]
[1729805035626,3.2078,2561.3,2561.2,0.39065]
[1729805035824,3.2078,2561.3,2561.1,2.74804638]
[1729805036329,3.2078,2561.3,2561.2,0.39065]
[1729805037528,1.10523,2561.4,2561.2,0.39065]
[1729805037834,0.39064,2561.3,2561.1,3.13870638]
[1729805038030,0.39064,2561.3,2561.1,0.39067]
[1729805038232,0.7146,2561.4,2561.0,4.1758]
[1729805038628,1.10522,2561.4,2561.2,0.39064]
[1729805039227,0.7146,2561.4,2561.2,0.39064]
[1729805039731,0.7146,2561.4,2561.0,3.2078]
[1729805039932,1.10522,2561.4,2561.2,0.39064]
[1729805040326,0.7146,2561.4,2561.3,0.39064]
[1729805040633,0.7146,2561.4,2561.2,0.39064]
[1729805041135,1.10523,2561.4,2561.2,0.39064]
[1729805041734,1.10523,2561.4,2561.1,3.44584638]
[1729805041940,0.7146,2561.4,2561.3,0.39064]
[1729805042129,1.10522,2561.4,2561.2,0.39065]
[1729805042529,1.10523,2561.4,2561.2,0.39065]
[1729805042733,0.7146,2561.4,2561.1,0.6978]
[1729805042931,0.7146,2561.4,2561.0,4.55148]
[1729805043130,0.39067,2561.1,2561.0,4.1608]
[1729805043332,0.7049,2561.3,2561.0,3.2078]
[1729805043531,1.09554,2561.3,2561.1,0.39066]
[1729805043729,1.09554,2561.3,2561.0,3.59847]
[1729805044130,1.09554,2561.3,2561.0,0.39067]
[1729805044333,1.09554,2561.3,2561.0,0.39068]
[1729805044531,0.7049,2561.3,2561.0,0.39068]
[1729805044731,0.39065,2561.2,2561.0,0.39068]
[1729805045032,0.7049,2561.3,2560.7,1.4493]
[1729805045234,0.39066,2561.2,2561.0,0.39067]
[1729805046544,0.39077,2560.5,2560.1,0.39081]
[1729805046833,1.4139,2560.4,2560.0,3.2078]
[1729805047133,1.4139,2560.4,2559.9,2.74804638]
[1729805047532,1.4139,2560.4,2560.1,0.39081]
[1729805047731,1.4139,2560.4,2560.1,0.39082]
[1729805047936,1.4139,2560.4,2560.1,0.39081]
[1729805048129,1.4139,2560.4,2560.0,0.39083]
[1729805048336,3.2078,2560.8,2560.5,0.39075]
[1729805048537,1.06831,2560.9,2560.5,0.39075]
[1729805049037,0.6776,2560.9,2560.6,0.39074]
[1729805049337,0.6776,2560.9,2560.5,0.7238]
[1729805049534,0.6776,2560.9,2560.6,0.39073]
[1729805049728,0.6776,2560.9,2560.6,0.953]
[1729805050135,0.39073,2560.7,2560.6,0.953]
[1729805050331,0.39073,2560.7,2560.5,1.6768]
[1729805050928,0.39073,2560.7,2560.4,3.13881638]
[1729805051137,0.39073,2560.7,2560.4,2.74804638]
[1729805051335,0.7073,2560.8,2560.4,2.74804638]
[1729805051540,0.39076,2560.6,2560.4,2.74804638]
[1729805051933,0.7073,2560.8,2560.3,4.1608]
[1729805052237,0.3908,2560.3,2560.0,4.09187638]
[1729805052537,3.9151,2560.8,2560.0,2.74804638]
[1729805052538,1.12491,2560.2,2560.0,2.74804638]
[1729805053236,1.1249,2560.2,2560.1,0.11018877]
[1729805053943,0.7341,2560.2,2560.1,0.11018877]
[1729805054143,1.1249,2560.2,2560.1,0.11018877]
[1729805054733,0.7246,2560.6,2560.1,3.31798877]
[1729805054937,0.7246,2560.6,2560.2,0.3908]
[1729805055140,0.7246,2560.6,2560.4,0.11018877]
[1729805055631,1.11535,2560.6,2560.4,0.50094877]
[1729805055828,0.7246,2560.6,2560.4,0.11018877]
[1729805056033,0.7246,2560.6,2560.4,0.50094877]
[1729805056241,1.11535,2560.6,2560.5,0.11018877]
[1729805056541,0.7246,2560.6,2560.5,0.11018877]
[1729805056841,8.22874,2560.6,2560.5,0.11018877]
[1729805057245,0.39084,2560.0,2559.7,3.13891638]
[1729805057434,0.39083,2560.1,2559.8,3.59866]
[1729805057743,0.39084,2560.0,2559.8,3.59866]
[1729805058137,0.6966,2560.4,2559.8,3.2078]
[1729805058338,0.39083,2560.0,2559.8,3.59865]
[1729805058744,0.6871,2560.3,2559.8,3.59865]
[1729805058745,0.6871,2560.3,2559.8,3.2078]
[1729805058942,0.6966,2560.4,2559.9,2.74804638]
[1729805059139,0.6966,2560.4,2560.2,0.3908]
[1729805060042,1.08738,2560.4,2560.2,0.3908]
[1729805061045,3.9324,2560.6,2560.1,0.6881]
[1729805061244,0.39077,2560.5,2560.2,0.39079]
[1729805061748,0.39077,2560.5,2560.2,0.3908]
[1729805061944,0.39078,2560.4,2560.2,0.3908]
[1729805062243,3.9324,2560.6,2560.2,0.3908]
[1729805062441,0.39078,2560.4,2560.2,0.3908]
[1729805062642,3.9324,2560.6,2560.1,0.6881]
[1729805062643,0.7159,2560.5,2560.1,0.6881]
[1729805062845,0.6843,2560.3,2559.9,0.39084]
[1729805063043,0.39083,2560.1,2559.9,0.39084]
[1729805063946,0.6843,2560.3,2559.9,0.39084]
[1729805064146,0.39084,2560.0,2559.8,3.59866]
[1729805064451,0.6924,2559.9,2559.8,3.59866]
[1729805065244,0.6924,2559.9,2558.3,9.772]
[1729805065245,0.39087,2559.8,2559.2,3.2078]
[1729805065554,1.74737,2559.8,2559.6,0.39089]
[1729805066140,1.74737,2559.8,2559.3,0.7175]
[1729805066337,1.3565,2559.8,2559.3,0.7175]
[1729805066740,3.2078,2559.7,2559.3,0.7175]
[1729805066951,0.39088,2559.7,2559.6,0.39088]
[1729805067448,0.39088,2559.7,2559.3,0.7175]
[1729805067648,0.39088,2559.7,2559.6,0.3909]
[1729805067851,1.74738,2559.8,2559.6,0.3909]
[1729805068053,8.09142,2559.7,2559.2,3.2078]
[1729805068351,0.39096,2559.2,2559.1,0.39097]
[1729805068551,4.18502,2559.7,2558.9,3.2078]
[1729805068552,2.74804638,2559.5,2558.9,3.2078]
[1729805068950,0.39096,2559.2,2559.0,0.39098]
[1729805069147,0.39099,2559.0,2558.9,3.2078]
[1729805069348,0.39099,2559.0,2558.9,3.5988]
[1729805070045,0.6897,2559.1,2558.9,3.2078]
[1729805070251,1.08068,2559.1,2559.0,0.39099]
[1729805070543,1.08068,2559.1,2558.9,3.2078]
[1729805070544,1.08068,2559.1,2558.9,3.5988]
[1729805070752,1.08068,2559.1,2559.0,0.39099]
[1729805070949,0.39099,2559.0,2558.9,3.5988]
[1729805071550,0.6897,2559.1,2558.9,3.2078]
[1729805071854,0.6897,2559.1,2559.0,0.39099]
[1729805072050,1.08067,2559.1,2559.0,0.39099]
[1729805072352,1.08067,2559.1,2558.9,0.39099]
[1729805072954,1.08067,2559.1,2558.7,1.392]
[1729805073149,1.08067,2559.1,2559.0,0.39099]
[1729805073354,0.6897,2559.1,2559.0,0.39099]
[1729805074256,7.8055,2559.1,2558.6,3.2078]
[1729805074468,7.8055,2559.1,2558.7,0.39103]
[1729805074469,0.39102,2558.8,2558.7,0.39103]
[1729805074758,0.39103,2558.7,2558.6,3.2078]
[1729805075354,4.29903,2558.7,2558.6,3.2078]
[1729805075755,5.64823,2558.7,2558.6,3.2078]
[1729805078960,9.67469877,2558.7,2558.2,3.2078]
[1729805079151,0.39105,2558.6,2558.4,0.39107]
[1729805079661,3.2078,2559.1,2558.5,7.1166]
[1729805079851,3.2078,2559.1,2558.9,0.39099]
[1729805080052,3.2078,2559.1,2558.6,1.426]
[1729805080257,3.59878,2559.1,2558.9,0.39099]
[1729805080746,3.59877,2559.1,2558.9,0.39099]
[1729805081152,3.59877,2559.1,2559.0,0.39099]
[1729805081351,3.2078,2559.1,2559.0,0.39099]
[1729805082664,3.59877,2559.1,2559.0,0.39099]
[1729805082860,0.39097,2559.1,2559.0,0.39099]
[1729805083461,0.39098,2559.1,2558.9,0.391]
[1729805083659,0.39099,2559.0,2558.8,0.39101]
[1729805083862,0.39099,2559.0,2558.8,0.39102]
[1729805084363,0.39099,2559.0,2558.7,0.6874]
[1729805084665,0.39099,2559.0,2558.9,0.391]
[1729805084969,0.39099,2559.0,2558.8,0.39101]
[1729805085962,5.95584638,2559.2,2558.8,0.39101]
[1729805086260,0.39102,2558.8,2558.7,1.07843]
[1729805086461,0.39102,2558.8,2558.7,0.6874]
[1729805086660,0.39102,2558.8,2558.6,1.10714]
[1729805086865,0.39102,2558.8,2558.7,0.39103]
[1729805087164,6.93326638,2559.2,2558.6,0.39104]
[1729805087165,0.39103,2558.7,2558.6,0.39104]
[1729805087367,0.39105,2558.6,2558.5,0.39106]
[1729805087564,0.39105,2558.6,2558.4,1.395]
[1729805087565,0.39104,2558.7,2558.6,0.39105]
[1729805088066,4.6103,2558.9,2558.2,3.2078]
[1729805088266,4.6103,2558.9,2558.2,3.8797]
[1729805088459,0.39106,2558.5,2558.4,0.39107]
[1729805089458,0.39106,2558.5,2558.2,4.5601]
[1729805089664,0.39107,2558.5,2558.4,0.39107]
[1729805090770,0.39109,2558.3,2558.2,3.59891]
[1729805091169,4.29989,2558.3,2558.2,3.59891]
[1729805091367,5.02479,2558.3,2558.2,3.2078]
[1729805092068,5.02479,2558.3,2558.2,3.59891]
[1729805092460,5.02479,2558.3,2558.2,3.2078]
[1729805093868,7.77283638,2558.3,2558.2,3.2078]
[1729805094169,0.39114,2558.0,2557.8,0.6751]
[1729805094367,0.39114,2558.0,2557.8,1.06627]
[1729805094570,4.30074,2558.0,2557.8,0.39117]
[1729805094776,0.7108,2557.9,2557.8,0.39117]
[1729805094967,1.10196,2557.9,2557.7,1.07558]
[1729805095168,0.7108,2557.9,2557.8,0.39117]
[1729805095374,1.10196,2557.9,2557.7,1.07558]
[1729805095576,0.7108,2557.9,2557.7,0.6844]
[1729805095771,1.10196,2557.9,2557.7,1.07558]
[1729805095977,0.6743,2557.8,2557.7,0.39118]
[1729805096576,7.33194638,2557.8,2557.2,3.2078]
[1729805096876,3.81352638,2557.8,2557.6,0.39119]
[1729805097069,0.39119,2557.7,2557.5,0.39121]
[1729805097476,3.81352638,2557.8,2557.6,0.3912]
[1729805097978,3.42234638,2557.8,2557.4,0.6777]
[1729805098276,3.59899,2557.7,2557.5,0.39121]
[1729805098679,3.2078,2557.7,2557.5,0.39122]
[1729805098978,3.2078,2557.7,2557.4,0.6777]
[1729805098979,0.3912,2557.6,2557.4,1.06892]
[1729805099172,3.2078,2557.7,2557.4,0.6777]
[1729805099372,0.39122,2557.5,2557.3,1.09004]
[1729805099973,0.39123,2557.4,2557.3,0.6988]
[1729805100170,0.39123,2557.4,2557.3,0.39125]
[1729805100375,0.39123,2557.5,2557.2,3.9325]
[1729805100573,2.74804638,2557.6,2557.2,4.32376]
[1729805100774,3.2078,2557.7,2557.2,3.9325]
[1729805100976,4.08814638,2558.3,2557.5,5.95584638]
[1729805101171,1.3401,2558.3,2558.2,0.39111]
[1729805101570,1.73119,2558.3,2558.1,0.39112]
[1729805101980,1.7312,2558.3,2558.1,0.39112]
[1729805102176,1.3401,2558.3,2558.0,0.7247]
[1729805102474,1.7312,2558.3,2558.1,0.39111]
[1729805102672,1.7312,2558.3,2558.0,0.7247]
[1729805102673,1.3401,2558.3,2558.0,0.7247]
[1729805102873,0.39111,2558.2,2558.0,1.11583]
[1729805103174,1.3401,2558.3,2557.6,0.6902]
[1729805103175,5.95584638,2558.1,2557.6,0.6902]
[1729805103381,3.13920638,2557.9,2557.7,0.39118]
[1729805103682,3.59898,2557.8,2557.6,1.08139]
[1729805104375,3.2078,2557.8,2557.6,1.08139]
[1729805104578,0.39119,2557.7,2557.6,0.6902]
[1729805104878,4.6403,2557.8,2557.5,0.39121]
[1729805105185,0.39122,2557.5,2557.4,0.39123]
[1729805105482,0.39125,2557.3,2557.2,1.77926]
[1729805105681,0.39124,2557.4,2557.2,1.77926]
[1729805105880,7.96281094,2557.7,2557.2,1.05866]
[1729805105881,0.39125,2557.3,2557.2,1.05866]
[1729805106383,3.59905,2557.3,2557.1,0.39127]
[1729805106984,0.39128,2557.1,2557.0,0.6674]
[1729805107781,0.39129,2557.0,2556.4,7.89828638]
[1729805107987,3.2078,2557.0,2556.9,0.39131]
[1729805109479,1.4175,2557.2,2557.1,0.39128]
[1729805109678,1.80876,2557.2,2557.1,0.39128]
[1729805110181,3.2078,2557.3,2557.2,0.39126]
[1729805112075,3.2078,2557.3,2556.8,0.97831]
[1729805112281,3.59905,2557.3,2557.2,0.39126]
[1729805112781,3.2078,2557.3,2556.7,3.2078]
[1729805112982,3.59906,2557.3,2557.1,0.39127]
[1729805113883,3.2078,2557.3,2557.1,0.39127]
[1729805114187,3.59905,2557.3,2557.1,0.39127]
[1729805114391,0.7147,2557.2,2557.1,0.39127]
[1729805114689,0.7147,2557.2,2556.6,3.72641638]
[1729805114690,0.39128,2557.1,2556.6,2.74804638]
[1729805114886,1.10598,2557.2,2557.0,0.39129]
[1729805115090,3.59908,2557.1,2557.0,0.39129]
[1729805115889,3.2078,2557.1,2557.0,0.39129]
[1729805116589,3.59908,2557.1,2557.0,0.39129]
[1729805117086,3.2078,2557.1,2557.0,0.39129]
[1729805117587,7.50948,2557.1,2557.0,0.39129]
[1729805118086,7.1182,2557.1,2557.0,0.39129]
[1729805118991,3.2078,2557.1,2556.5,2.0283]
[1729805119286,3.2078,2557.1,2557.0,0.39129]
[1729805119687,7.1182,2557.1,2557.0,0.39129]
[1729805120189,3.2078,2557.1,2557.0,0.39129]
[1729805120688,7.1182,2557.1,2557.0,0.39129]
[1729805121389,3.9104,2557.1,2557.0,0.39129]
[1729805121597,7.1182,2557.1,2556.9,0.3913]
[1729805121789,0.7069,2557.0,2556.9,0.3913]
[1729805122289,4.6181,2557.0,2556.5,4.5463]
[1729805122479,3.45494638,2557.0,2556.5,4.5463]
[1729805123087,3.84624638,2557.0,2556.5,4.5463]
[1729805123392,3.84624638,2557.0,2556.8,0.39131]
[1729805123593,0.39131,2556.9,2556.8,0.39131]
[1729805123992,0.39131,2556.9,2556.8,0.39132]
[1729805124691,3.45494638,2557.0,2556.8,0.39132]
[1729805124892,0.39131,2556.9,2556.7,0.39133]
[1729805125087,4.25470622,2556.9,2556.5,3.2078]
[1729805125292,4.25470622,2556.9,2556.8,0.39132]
[1729805125696,0.7069,2557.0,2556.5,4.18622]
[1729805125994,0.7069,2557.0,2556.9,0.39131]
[1729805126188,0.7147,2557.2,2557.1,0.39128]
[1729805126395,3.9225,2557.2,2557.1,0.39128]
[1729805126689,3.2078,2557.2,2557.1,0.39128]
[1729805127487,3.2078,2557.2,2556.8,2.1518]
[1729805127488,3.59907,2557.2,2557.0,0.39128]
[1729805127686,3.59907,2557.2,2557.1,0.39128]
[1729805127687,3.59906,2557.2,2557.1,0.39128]
[1729805127882,3.2078,2557.2,2557.1,0.39128]
[1729805128296,3.59906,2557.2,2557.1,0.39128]
[1729805128990,0.39126,2557.2,2557.1,0.39128]
[1729805129693,0.39128,2557.1,2557.0,0.39129]
[1729805130198,4.30168,2557.1,2557.0,0.39129]
[1729805130695,3.9104,2557.1,2557.0,0.39129]
[1729805132591,3.9104,2557.1,2556.8,1.4529]
[1729805132796,5.95584638,2557.0,2556.5,3.8982]
[1729805132996,0.39134,2556.8,2556.6,0.39135]
[1729805133296,2.74804638,2556.8,2556.5,3.2078]
[1729805133593,0.39135,2556.6,2556.5,3.2078]
[1729805134292,4.30255,2556.6,2556.5,3.2078]
[1729805134497,8.62153639,2556.6,2556.5,3.2078]
[1729805137400,0.39141,2556.3,2556.2,3.2078]
[1729805137789,0.39141,2556.3,2556.2,3.59922]
[1729805138192,1.4515,2556.4,2556.2,3.2078]
[1729805138501,0.3914,2556.3,2556.2,3.59921]
[1729805138692,1.4515,2556.4,2555.9,2.0571]
[1729805138892,1.84289,2556.4,2556.2,0.39141]
[1729805139395,0.7328,2556.4,2555.9,2.0571]
[1729805139601,1.12419,2556.4,2556.2,0.39142]
[1729805139796,1.12419,2556.4,2556.1,0.39142]
[1729805140097,1.12419,2556.4,2555.9,2.0571]
[1729805140295,1.12419,2556.4,2556.2,0.39141]
[1729805140698,0.7328,2556.4,2555.9,2.0571]
[1729805140898,1.12419,2556.4,2556.2,0.39141]
[1729805141694,0.7328,2556.4,2556.2,0.39141]
[1729805141904,3.9406,2556.4,2556.2,0.39142]
[1729805142199,4.332,2556.4,2556.2,0.39142]
[1729805142492,4.33199,2556.4,2556.2,0.39141]
[1729805143101,4.332,2556.4,2556.2,0.39141]
[1729805143298,4.332,2556.4,2555.9,1.3362]
[1729805143299,0.39141,2556.3,2555.9,1.3362]
[1729805143498,0.738,2556.2,2555.9,1.3362]
[1729805143694,1.12194,2556.1,2555.9,1.06316]
[1729805143900,1.12194,2556.1,2555.9,0.39146]
[1729805144299,0.39147,2555.9,2555.7,0.39149]
[1729805144495,4.16394354,2556.0,2555.9,0.39146]
[1729805144688,4.33199,2556.4,2555.9,3.9128]
[1729805144893,4.33199,2556.4,2556.2,0.39141]
[1729805145299,0.39142,2556.3,2556.0,0.39143]
[1729805145500,3.13946638,2556.3,2556.0,0.39143]
[1729805145695,0.39142,2556.2,2556.0,0.39143]
[1729805146397,0.39143,2556.1,2555.9,0.39145]
[1729805146602,0.7099,2556.0,2555.9,0.39145]
[1729805147894,4.6227,2556.0,2555.9,0.39145]
[1729805148805,0.39146,2555.9,2555.8,0.39147]
[1729805149709,1.10136,2556.0,2555.9,0.39146]
[1729805150201,5.01416,2556.0,2555.9,0.39146]
[1729805150403,4.6227,2556.0,2555.9,0.39146]
[1729805150595,5.01415,2556.0,2555.9,0.39146]
[1729805151902,4.6227,2556.0,2555.7,1.3845]
[1729805152097,0.7099,2556.0,2555.7,1.3845]
[1729805152292,0.7099,2556.0,2555.9,0.39146]
[1729805152494,4.6227,2556.0,2555.9,0.39146]
[1729805152699,5.01415,2556.0,2555.9,0.39146]
[1729805153004,3.48284638,2556.3,2555.7,1.3845]
[1729805153300,3.48284638,2556.3,2556.2,0.39142]
[1729805153301,1.4308,2556.3,2556.2,0.39142]
[1729805154007,3.2078,2556.7,2556.6,0.39135]
[1729805163002,6.34713638,2557.1,2557.0,0.39129]
[1729805163207,5.95584638,2557.1,2557.0,0.39129]
[1729805163414,10.25752638,2557.1,2557.0,0.39129]
[1729805163607,6.34712638,2557.1,2556.6,0.97839]
[1729805163807,3.59908,2557.1,2556.9,0.3913]
[1729805164004,3.59909,2557.1,2556.9,0.3913]
[1729805164208,3.2078,2557.1,2556.5,3.2078]
[1729805164410,3.2078,2557.1,2557.0,0.39128]
[1729805166213,3.84350638,2557.3,2557.1,0.39128]
[1729805166416,3.84350638,2557.3,2557.2,0.39126]
[1729805166611,0.7042,2557.3,2557.2,0.39126]
[1729805166912,3.2078,2557.4,2557.3,0.39125]
[1729805168312,0.7337,2557.5,2557.4,0.39123]
[1729805168517,3.2078,2558.0,2557.3,2.74804638]
[1729805168822,4.6253,2558.0,2557.4,5.3862]
[1729805169021,4.6253,2558.0,2557.9,0.39116]
[1729805170325,5.01645,2558.0,2557.8,0.39117]
[1729805170619,4.6253,2558.0,2557.9,0.39116]
[1729805171013,4.6253,2558.0,2557.4,6.36426]
[1729805171220,4.6253,2558.0,2557.8,0.39116]
[1729805171414,4.6253,2558.0,2557.9,0.39116]
[1729805173424,3.8916,2558.0,2557.9,0.39116]
[1729805174018,3.8916,2558.0,2557.4,5.3862]
[1729805174218,3.8916,2558.0,2557.8,0.39116]
[1729805174219,4.28274,2558.0,2557.8,0.39116]
[1729805174418,3.8916,2558.0,2557.8,0.39116]
[1729805174624,3.8916,2558.0,2557.4,5.3862]
[1729805174826,3.2078,2558.0,2557.9,0.39116]
[1729805175119,3.2078,2558.0,2557.6,2.74804638]
[1729805175120,3.2078,2558.3,2558.2,0.39111]
[1729805175516,4.6672,2558.6,2558.0,2.74804638]
[1729805175718,3.9509,2558.6,2558.5,0.39106]
[1729805175918,3.2078,2558.6,2558.5,0.39106]
[1729805176118,3.2078,2558.6,2558.5,4.29986]
[1729805179417,3.2078,2559.0,2558.9,0.391]
[1729805180225,3.2078,2559.0,2558.6,1.3908]
[1729805180422,3.59879,2559.0,2558.8,0.39101]
[1729805180621,3.2078,2559.0,2558.8,0.39101]
[1729805180920,0.391,2558.9,2558.8,0.39101]
[1729805181430,3.2078,2559.0,2558.8,0.39101]
[1729805181728,3.59879,2559.0,2558.8,0.39101]
[1729805181924,3.59879,2559.0,2558.5,0.933]
[1729805182128,3.2078,2559.0,2558.9,0.391]
[1729805183824,3.2078,2559.0,2558.9,4.299]
[1729805184827,3.2078,2559.0,2558.9,5.0192]
[1729805185931,3.2078,2559.2,2559.0,0.39099]
[1729805186125,3.2078,2559.2,2559.1,0.39097]
[1729805186536,3.2078,2559.2,2559.1,4.29817]
[1729805187726,3.2078,2559.2,2559.1,0.39097]
[1729805188138,4.28125,2559.3,2559.2,0.39096]
[1729805188832,3.8903,2559.3,2559.2,0.39096]
[1729805189229,4.28124,2559.3,2559.2,0.39096]
[1729805189537,1.07344,2559.3,2559.2,0.39096]
[1729805189732,4.28124,2559.3,2559.2,0.39096]
[1729805190234,1.07344,2559.3,2559.2,0.39096]
[1729805190630,4.28124,2559.3,2559.2,0.39096]
[1729805190832,3.8903,2559.3,2559.2,0.39096]
[1729805191025,4.28124,2559.3,2559.2,0.39096]
[1729805191633,0.9774,2559.2,2558.4,3.2078]
[1729805191834,0.9774,2559.2,2558.6,0.39104]
[1729805191835,0.39103,2558.7,2558.6,0.39104]
[1729805192054,0.39106,2558.6,2558.5,0.39106]
[1729805192232,5.95584638,2558.6,2558.1,3.2078]
[1729805192532,0.39112,2558.2,2558.1,3.2078]
[1729805192733,0.39117,2557.9,2557.8,3.2078]
[1729805192935,3.13921638,2557.9,2557.8,3.2078]
[1729805193328,0.3912,2557.7,2557.5,3.2078]
[1729805193534,0.39119,2557.7,2557.5,3.59901]
[1729805194137,0.3912,2557.6,2557.5,3.2078]
[1729805196240,4.3008,2557.6,2557.5,3.2078]
[1729805196538,3.9096,2557.6,2556.9,6.86884638]
[1729805196730,3.2078,2557.7,2557.2,0.39125]
[1729805196928,0.39124,2557.4,2557.2,0.39125]
[1729805197232,0.39124,2557.4,2557.1,0.39127]
[1729805197435,0.39123,2557.5,2557.2,0.39125]
[1729805197633,7.71155285,2557.7,2556.9,5.95584638]
[1729805197939,0.39124,2557.4,2556.9,5.95584638]
[1729805198130,7.71155285,2557.7,2557.1,0.39127]
[1729805198326,0.39125,2557.3,2557.1,0.39127]
[1729805198544,7.71155285,2557.7,2557.1,0.39127]
[1729805198727,7.71155285,2557.7,2557.2,0.39126]
[1729805198728,0.39123,2557.5,2557.2,0.39126]
[1729805198931,0.39124,2557.4,2557.1,0.39126]
[1729805199738,0.39124,2557.4,2557.2,0.39126]
[1729805200339,0.39122,2557.5,2557.2,0.39126]
[1729805201340,0.39125,2557.4,2557.1,0.39127]
[1729805201842,0.39124,2557.4,2557.1,0.39127]
[1729805202338,0.39124,2557.4,2557.2,0.39126]
[1729805202645,0.7212,2557.3,2557.2,0.39126]
[1729805202846,0.7212,2557.3,2556.9,5.95584638]
[1729805203145,0.7212,2557.3,2557.2,0.39126]
[1729805206038,1.11245,2557.3,2557.1,0.39127]
[1729805206245,0.39129,2557.1,2556.9,0.3913]
[1729805206546,0.39129,2557.0,2556.8,3.59912]
[1729805207050,0.39131,2556.9,2556.7,0.39134]
[1729805208646,3.2078,2557.0,2556.4,3.8996]
[1729805208842,0.39134,2556.7,2556.4,3.8996]
[1729805209048,0.39134,2556.7,2556.5,0.39136]
[1729805209247,0.39135,2556.6,2556.5,0.39136]
[1729805209541,0.39137,2556.5,2556.4,4.29098]
[1729805209950,0.7243,2556.8,2556.4,4.29098]
[1729805210145,0.39136,2556.6,2556.5,0.39137]
[1729805210352,0.39136,2556.6,2556.4,3.8996]
[1729805210544,0.39136,2556.6,2556.5,0.39137]
[1729805210844,0.7243,2556.8,2556.4,4.29098]
[1729805211046,0.39137,2556.6,2556.4,0.39138]
[1729805211245,0.7243,2556.8,2556.3,0.7371]
[1729805211439,3.2078,2556.7,2556.2,14.14322246]
[1729805211648,0.39139,2556.4,2556.3,0.3914]
[1729805211855,0.39138,2556.5,2556.3,0.3914]
[1729805212142,0.7262,2556.6,2556.5,0.39137]
[1729805212748,3.2078,2556.7,2556.6,0.39135]
[1729805216048,9.86704638,2556.7,2556.1,4.18637]
[1729805216239,5.95584638,2556.4,2555.4,3.2078]
[1729805216440,3.2078,2556.1,2555.4,3.2078]